bitfinex/quotes_SOLUSD_20250506
["timestamp","ask_amount","ask_price","bid_price","bid_amount"]
[1746531434561,48.54407363,143.24,143.21,138.3]
[1746531434744,24.10935593,143.23,143.21,138.3]
[1746531435369,6.98226504,143.22,143.21,138.3]
[1746531437562,17.45342756,143.24,143.21,138.3]
[1746531437778,17.45342756,143.24,143.21,162.40935593]
[1746531438248,17.45342756,143.24,143.21,24.10935593]
[1746531439660,17.45342756,143.24,143.2,24.10935593]
[1746531440043,18.64964886,143.23,143.2,24.10935593]
[1746531441452,6.98226504,143.22,143.2,24.10935593]
[1746531442476,6.98226504,143.22,143.21,24.10935593]
[1746531443579,24.4347177,143.24,143.21,24.10935593]
[1746531443760,24.4347177,143.24,143.18,139.849]
[1746531443761,24.4347177,143.24,143.22,24.10935593]
[1746531445181,24.4347177,143.24,143.21,24.10935593]
[1746531445681,18.64964886,143.23,143.2,24.10935593]
[1746531445981,18.64964886,143.23,143.19,15.05647844]
[1746531446179,18.64964886,143.23,143.2,15.05647844]
[1746531446379,18.64964886,143.23,143.21,15.05647844]
[1746531446580,18.64964886,143.23,143.2,15.05647844]
[1746531447380,24.4347177,143.24,143.21,15.05647844]
[1746531448484,24.4347177,143.24,143.22,15.05647844]
[1746531450786,24.4347177,143.24,143.21,15.05647844]
[1746531451981,6.98129014,143.24,143.22,15.05647844]
[1746531452282,6.98129014,143.24,143.23,15.05647844]
[1746531452463,6.98129014,143.24,143.23,21.65297844]
[1746531452865,24.43123495,143.26,143.23,21.65297844]
[1746531453064,43.08088381,143.26,143.25,15.05647844]
[1746531453460,6.98031551,143.26,143.23,144.8965]
[1746531453660,6.98031551,143.26,143.25,15.05647844]
[1746531454696,6.97934115,143.28,143.25,153.35647844]
[1746531454876,6.97934115,143.28,143.27,15.05647844]
[1746531456385,6.97934115,143.28,143.26,15.05647844]
[1746531458872,6.97934115,143.28,143.25,138.3]
[1746531459372,18.64964886,143.27,143.25,138.3]
[1746531459679,18.64964886,143.27,143.24,154.95947844]
[1746531460089,24.42769402,143.28,143.26,15.05647844]
[1746531460397,24.42769402,143.28,143.27,15.05647844]
[1746531460590,24.42769402,143.28,143.26,15.05647844]
[1746531460776,24.42769402,143.28,143.25,15.05647844]
[1746531460979,18.64964886,143.27,143.24,154.95947844]
[1746531461396,18.64964886,143.27,143.25,15.05647844]
[1746531463095,6.98031551,143.26,143.25,15.05647844]
[1746531465399,24.42769402,143.28,143.24,139.903]
[1746531465596,24.42769402,143.28,143.25,15.05647844]
[1746531466495,24.42769402,143.28,143.26,15.05647844]
[1746531466700,24.42769402,143.28,143.27,15.05647844]
[1746531467401,24.4244038,143.3,143.27,15.05647844]
[1746531468598,24.4244038,143.3,143.26,15.05647844]
[1746531468794,18.64964886,143.29,143.25,15.05647844]
[1746531469002,33.7061273,143.29,143.25,15.05647844]
[1746531469305,18.64964886,143.29,143.25,15.05647844]
[1746531469492,24.42769402,143.28,143.25,15.05647844]
[1746531470397,24.42769402,143.28,143.26,15.05647844]
[1746531471005,6.97934115,143.28,143.27,15.05647844]
[1746531471587,24.42461123,143.3,143.27,153.35647844]
[1746531472202,18.64964886,143.29,143.27,138.3]
[1746531472500,33.7061273,143.29,143.27,138.3]
[1746531472707,18.64964886,143.29,143.27,138.3]
[1746531473008,18.64964886,143.29,143.27,153.35647844]
[1746531473610,6.97934115,143.28,143.27,153.35647844]
[1746531475680,24.42461123,143.3,143.27,138.3]
[1746531476610,39.48108967,143.3,143.27,138.3]
[1746531477121,18.64964886,143.29,143.27,138.3]
[1746531477509,18.64964886,143.29,143.26,15.05647844]
[1746531477916,6.97934115,143.28,143.26,15.05647844]
[1746531479200,24.42769402,143.28,143.25,138.3]
[1746531479615,24.42769402,143.28,143.25,153.35647844]
[1746531479992,24.42769402,143.28,143.25,138.3]
[1746531480420,24.42769402,143.28,143.25,153.35647844]
[1746531480804,24.42769402,143.28,143.25,138.3]
[1746531481321,15.05647844,143.26,143.2,157.197]
[1746531481487,18.64964886,143.24,143.2,172.25347844]
[1746531481695,18.64964886,143.24,143.2,154.95347844]
[1746531481892,18.64964886,143.24,143.21,15.05647844]
[1746531482120,15.05647844,143.27,143.22,15.05647844]
[1746531482319,15.05647844,143.27,143.2,139.897]
[1746531482320,33.7061273,143.25,143.21,15.05647844]
[1746531482695,15.05647844,143.24,143.2,154.95347844]
[1746531482912,15.05647844,143.24,143.2,139.897]
[1746531483202,6.98226504,143.22,143.2,139.897]
[1746531483406,6.98226504,143.22,143.2,1.597]
[1746531483802,18.64964886,143.21,143.17,15.05647844]
[1746531483994,24.43792765,143.22,143.19,15.05647844]
[1746531484324,6.98226504,143.22,143.21,15.05647844]
[1746531484527,6.98226504,143.22,143.2,15.05647844]
[1746531485209,24.43792765,143.22,143.19,153.35647844]
[1746531485407,17.45566261,143.22,143.19,153.35647844]
[1746531487010,17.45566261,143.22,143.2,15.05647844]
[1746531487206,17.45566261,143.22,143.19,153.35647844]
[1746531487518,17.45566261,143.22,143.2,15.05647844]
[1746531487725,17.45566261,143.22,143.19,162.39232283]
[1746531488933,17.45566261,143.22,143.19,138.3]
[1746531489129,17.45566261,143.22,143.19,162.39232283]
[1746531489428,17.45566261,143.22,143.2,24.09232283]
[1746531489716,6.98177756,143.23,143.21,24.09232283]
[1746531489927,34.88021004,143.35,143.22,24.09232283]
[1746531490109,6.97836706,143.3,143.29,24.09232283]
[1746531490429,18.64964886,143.29,143.26,24.09232283]
[1746531490734,18.64964886,143.29,143.25,24.09232283]
[1746531490899,18.64964886,143.29,143.26,24.09232283]
[1746531491299,6.97934115,143.28,143.26,24.09232283]
[1746531491505,18.64964886,143.27,143.26,24.09232283]
[1746531493503,6.97982829,143.27,143.26,24.09232283]
[1746531493809,6.97885407,143.29,143.26,24.09232283]
[1746531494015,6.97885407,143.29,143.28,24.09232283]
[1746531494315,6.97853577,143.3,143.28,24.09232283]
[1746531495327,6.97807078,143.31,143.29,24.09232283]
[1746531495830,6.97807078,143.31,143.28,24.09232283]
[1746531496024,6.97807078,143.31,143.27,24.09232283]
[1746531497207,6.97807078,143.31,143.28,24.09232283]
[1746531497612,6.97807078,143.31,143.3,24.09232283]
[1746531498141,6.97807078,143.31,143.29,7.8467]
[1746531498729,18.64964886,143.31,143.29,7.8467]
[1746531499032,18.64964886,143.31,143.28,162.39232283]
[1746531499033,18.64964886,143.3,143.28,138.3]
[1746531499206,24.09232283,143.3,143.28,138.3]
[1746531499401,42.74197169,143.29,143.25,7.8977]
[1746531499632,24.09232283,143.28,143.23,24.09232283]
[1746531499816,24.09232283,143.28,143.22,155.6]
[1746531500123,18.64964886,143.26,143.23,24.09232283]
[1746531500316,18.64964886,143.26,143.23,162.39232283]
[1746531500706,6.98080279,143.25,143.23,24.09232283]
[1746531500912,18.64964886,143.24,143.22,138.3]
[1746531501319,18.64964886,143.24,143.16,7.6966]
[1746531501632,18.64964886,143.22,143.18,24.09232283]
[1746531501809,18.64964886,143.22,143.19,24.09232283]
[1746531502010,18.64964886,143.22,143.19,162.39232283]
[1746531502535,6.9827526,143.21,143.19,162.39232283]
[1746531503230,6.9827526,143.21,143.16,7.6966]
[1746531503231,24.4396341,143.21,143.16,171.9966]
[1746531503535,24.4396341,143.21,143.19,24.09232283]
[1746531505832,43.08928296,143.21,143.16,171.9966]
[1746531506025,43.08928296,143.21,143.19,24.09232283]
[1746531506839,18.64964886,143.2,143.17,24.09232283]
[1746531507842,42.74197169,143.2,143.16,170.08892283]
[1746531508042,42.74197169,143.2,143.16,31.78892283]
[1746531508947,18.64964886,143.18,143.16,31.78892283]
[1746531509440,6.98372791,143.19,143.17,24.09232283]
[1746531509820,6.98372791,143.19,143.18,24.09232283]
[1746531510556,6.98372791,143.19,143.17,24.09232283]
[1746531510726,24.44304769,143.19,143.16,31.78892283]
[1746531511052,6.98470349,143.17,143.15,24.09232283]
[1746531512035,6.98470349,143.17,143.13,188.0612]
[1746531512339,6.98470349,143.17,143.14,24.09232283]
[1746531512545,6.98470349,143.17,143.13,188.0612]
[1746531512746,6.98470349,143.17,143.12,139.8609]
[1746531512747,24.09232283,143.15,143.12,139.8609]
[1746531512932,6.98665548,143.13,143.11,24.09232283]
[1746531513444,6.98665548,143.13,143.12,24.09232283]
[1746531513952,6.98665548,143.13,143.1,169.04922283]
[1746531514118,6.98665548,143.13,143.1,144.9569]
[1746531514326,24.4532942,143.13,143.1,144.9569]
[1746531515450,24.4532942,143.13,143.1,169.04922283]
[1746531515951,6.98665548,143.13,143.11,24.09232283]
[1746531516158,6.98665548,143.13,143.12,24.09232283]
[1746531517127,6.98665548,143.13,143.1,144.9569]
[1746531517128,25.63581624,143.14,143.11,24.09232283]
[1746531517639,43.10123471,143.14,143.11,24.09232283]
[1746531518762,67.19355754,143.14,143.1,138.3]
[1746531519058,18.64964886,143.12,143.1,24.09232283]
[1746531519437,6.98763189,143.11,143.1,24.09232283]
[1746531526853,6.98735248,143.12,143.1,24.09232283]
[1746531527058,6.98735248,143.12,143.11,24.09232283]
[1746531528652,18.64964886,143.13,143.11,24.09232283]
[1746531528653,6.98680854,143.13,143.11,24.09232283]
[1746531528868,6.98680854,143.13,143.09,139.9395]
[1746531528869,6.98680854,143.13,143.12,24.09232283]
[1746531530157,6.98616738,143.14,143.12,24.09232283]
[1746531530367,6.98616738,143.14,143.13,24.09232283]
[1746531530566,6.98616738,143.14,143.09,139.9395]
[1746531530747,6.98616738,143.14,143.13,24.09232283]
[1746531531864,24.45158585,143.14,143.11,24.09232283]
[1746531532174,18.64964886,143.13,143.11,24.09232283]
[1746531532474,24.45158585,143.14,143.12,24.09232283]
[1746531533171,24.45158585,143.14,143.11,24.09232283]
[1746531533866,24.45158585,143.14,143.12,24.09232283]
[1746531534268,24.45158585,143.14,143.09,139.9395]
[1746531534573,24.45158585,143.14,143.11,24.09232283]
[1746531535075,24.45158585,143.14,143.09,139.9395]
[1746531535463,24.45158585,143.14,143.11,24.09232283]
[1746531535668,18.64964886,143.13,143.1,24.09232283]
[1746531535880,18.64964886,143.13,143.11,24.09232283]
[1746531536179,18.64964886,143.13,143.1,24.09232283]
[1746531536751,6.98714365,143.12,143.1,24.09232283]
[1746531537474,18.64964886,143.11,143.08,138.3]
[1746531537654,18.64964886,143.11,143.08,162.39232283]
[1746531538272,18.64964886,143.11,143.09,24.09232283]
[1746531538472,18.64964886,143.11,143.08,162.39232283]
[1746531538673,6.98812019,143.1,143.08,162.39232283]
[1746531540258,25.63776905,143.1,143.09,24.09232283]
[1746531540590,6.98812019,143.1,143.09,24.09232283]
[1746531543779,6.98812019,143.1,143.09,15.07915066]
[1746531543979,17.46542583,143.14,143.09,15.07915066]
[1746531544184,18.64964886,143.13,143.1,15.07915066]
[1746531544781,18.64964886,143.13,143.08,138.3]
[1746531544782,18.64964886,143.13,143.12,15.07915066]
[1746531544983,6.98665548,143.13,143.12,15.07915066]
[1746531547184,6.98616738,143.14,143.12,15.07915066]
[1746531548386,6.98616738,143.14,143.13,15.07915066]
[1746531549066,18.64964886,143.15,143.12,16.71335066]
[1746531550284,6.98616738,143.14,143.12,16.71335066]
[1746531550690,18.64964886,143.13,143.08,139.9248]
[1746531550896,18.64964886,143.13,143.1,15.07915066]
[1746531552002,24.45158585,143.14,143.12,15.07915066]
[1746531552293,6.98616738,143.14,143.13,15.07915066]
[1746531554191,6.98519139,143.16,143.13,15.07915066]
[1746531554494,6.98519139,143.16,143.14,15.07915066]
[1746531556786,6.98519139,143.16,143.13,15.07915066]
[1746531557578,18.64964886,143.15,143.13,15.07915066]
[1746531557773,18.64964886,143.15,143.12,15.07915066]
[1746531558696,18.64964886,143.15,143.1,138.3]
[1746531558697,18.64964886,143.13,143.1,138.3]
[1746531559582,33.72879952,143.13,143.09,15.07915066]
[1746531559781,33.72879952,143.13,143.08,155.00395066]
[1746531559977,33.72879952,143.13,143.09,15.07915066]
[1746531560205,18.64964886,143.13,143.1,15.07915066]
[1746531560878,25.63660081,143.13,143.1,15.07915066]
[1746531561385,40.71575147,143.13,143.09,15.07915066]
[1746531561590,40.71575147,143.13,143.08,155.00395066]
[1746531562908,25.63660081,143.13,143.09,15.07915066]
[1746531563112,25.63660081,143.13,143.11,15.07915066]
[1746531566407,6.98616738,143.14,143.11,15.07915066]
[1746531566610,6.98616738,143.14,143.09,6.98845837]
[1746531566814,18.64964886,143.13,143.1,15.07915066]
[1746531566990,18.64964886,143.13,143.11,15.07915066]
[1746531567816,6.986836,143.13,143.11,15.07915066]
[1746531568714,6.98635027,143.14,143.12,15.07915066]
[1746531569709,6.98635027,143.14,143.11,15.07915066]
[1746531569887,18.64964886,143.13,143.11,15.07915066]
[1746531570887,6.98714365,143.12,143.11,15.07915066]
[1746531571207,6.98687141,143.13,143.11,15.07915066]
[1746531573210,6.98616738,143.14,143.08,139.9248]
[1746531573511,18.64964886,143.13,143.1,15.07915066]
[1746531574597,6.98616738,143.14,143.1,15.07915066]
[1746531575308,6.98616738,143.14,143.11,15.07915066]
[1746531576098,18.64964886,143.13,143.09,15.07915066]
[1746531576316,18.64964886,143.13,143.08,139.9248]
[1746531576521,18.64964886,143.13,143.09,15.07915066]
[1746531577191,33.72879952,143.1,143.08,138.3]
[1746531577412,18.64964886,143.08,143.07,0.1163944]
[1746531578414,25.63874586,143.08,143.07,0.1163944]
[1746531579823,40.71789652,143.08,143.07,0.1163944]
[1746531579986,56.13454718,143.08,143.07,0.1163944]
[1746531580193,82.13454718,143.08,143.07,0.1163944]
[1746531581292,67.05539652,143.08,143.07,0.1163944]
[1746531583702,66.71789652,143.08,143.07,0.1163944]
[1746531585030,51.63874586,143.08,143.07,0.1163944]
[1746531585211,66.71789652,143.08,143.07,0.1163944]
[1746531587024,51.63874586,143.08,143.07,0.1163944]
[1746531587500,66.71789652,143.08,143.07,0.1163944]
[1746531589915,51.63874586,143.08,143.07,0.1163944]
[1746531590410,66.71789652,143.08,143.07,0.1163944]
[1746531594613,55.79704718,143.08,143.07,0.1163944]
[1746531594834,18.64964886,143.04,143.0,6.515]
[1746531595030,15.07915066,143.02,143.0,6.515]
[1746531595333,18.64964886,143.04,143.0,6.515]
[1746531595507,18.64964886,143.04,143.01,15.07915066]
[1746531595708,6.99154023,143.03,143.01,15.07915066]
[1746531596022,6.99007409,143.06,143.02,15.07915066]
[1746531596206,18.64964886,143.05,143.0,6.515]
[1746531596529,18.64964886,143.05,143.02,15.07915066]
[1746531598238,6.99105145,143.04,143.02,15.07915066]
[1746531599236,18.64964886,143.06,143.03,15.07915066]
[1746531599534,18.64964886,143.06,143.04,15.07915066]
[1746531600331,6.99056274,143.05,143.04,15.07915066]
[1746531601334,18.64964886,143.07,143.05,1.6112]
[1746531601519,18.64964886,143.07,143.05,16.69035066]
[1746531601917,24.46183952,143.08,143.05,16.69035066]
[1746531602121,18.64964886,143.07,143.05,1.6112]
[1746531602332,6.99007409,143.06,143.03,15.07915066]
[1746531602632,6.99007409,143.06,143.02,1.6576]
[1746531602633,18.64964886,143.05,143.02,1.6576]
[1746531602833,18.64964886,143.05,143.02,16.73675066]
[1746531603013,33.72879952,143.05,143.02,1.6576]
[1746531603221,33.72879952,143.05,143.0,144.815]
[1746531603625,33.72879952,143.05,143.0,159.89415066]
[1746531603944,33.72879952,143.05,143.01,15.07915066]
[1746531604439,18.64964886,143.03,143.0,159.89415066]
[1746531604636,18.64964886,143.03,143.0,144.815]
[1746531604823,18.64964886,143.03,143.0,159.89415066]
[1746531605517,18.64964886,143.03,143.0,21.59415066]
[1746531605718,18.64964886,143.03,143.0,30.672993]
[1746531606839,6.99202908,143.02,143.0,6.515]
[1746531607043,6.99202908,143.02,143.0,30.672993]
[1746531607455,18.64964886,143.01,142.99,1.5258]
[1746531608532,42.80764186,143.01,142.97,30.812493]
[1746531608936,18.64964886,142.99,142.97,6.6545]
[1746531609915,18.64964886,142.99,142.96,1.6243]
[1746531610811,18.64964886,142.99,142.96,25.782293]
[1746531611009,6.99398517,142.98,142.96,25.782293]
[1746531611240,18.64964886,142.97,142.96,1.6243]
[1746531611447,18.64964886,142.97,142.95,24.157993]
[1746531611820,18.64964886,142.97,142.96,24.157993]
[1746531612736,6.99398517,142.98,142.96,24.157993]
[1746531613647,6.99398517,142.98,142.94,144.3199]
[1746531614036,6.99398517,142.98,142.96,24.157993]
[1746531614538,18.64964886,142.99,142.97,24.157993]
[1746531614539,6.9937085,142.99,142.97,24.157993]
[1746531614743,6.9937085,142.99,142.94,168.477893]
[1746531614744,6.9932133,143.0,142.98,25.672493]
[1746531614951,6.9932133,143.0,142.99,24.157993]
[1746531615822,6.9932133,143.0,142.98,1.5145]
[1746531616029,6.9932133,143.0,142.99,24.157993]
[1746531616753,6.9932133,143.0,142.98,1.5145]
[1746531616953,6.9932133,143.0,142.99,24.157993]
[1746531617131,6.9932133,143.0,142.98,25.672493]
[1746531617649,18.64964886,142.99,142.96,24.157993]
[1746531618031,18.64964886,142.99,142.97,24.157993]
[1746531619235,18.64964886,142.99,142.95,138.3]
[1746531619447,6.99398517,142.98,142.96,24.157993]
[1746531621245,18.64964886,142.97,142.95,162.457993]
[1746531621450,6.99496362,142.96,142.95,162.457993]
[1746531621745,6.99496362,142.96,142.95,24.157993]
[1746531623233,17.48264175,143.0,142.95,24.157993]
[1746531623437,6.99300699,143.0,142.99,24.157993]
[1746531623946,6.99300699,143.0,142.98,24.157993]
[1746531624949,18.64964886,142.99,142.97,24.157993]
[1746531625339,18.64964886,142.99,142.96,24.157993]
[1746531625683,18.64964886,142.99,142.95,138.3]
[1746531625684,24.4789481,142.98,142.95,138.3]
[1746531625846,24.4789481,142.98,142.96,24.157993]
[1746531630060,43.12859696,142.98,142.97,24.157993]
[1746531630559,6.99300699,143.0,142.97,24.157993]
[1746531630733,6.99300699,143.0,142.95,138.3]
[1746531630734,6.99300699,143.0,142.99,24.157993]
[1746531630938,6.99300699,143.0,142.95,138.3]
[1746531631166,6.99300699,143.0,142.99,24.157993]
[1746531631670,24.47461608,143.01,142.98,24.157993]
[1746531631958,24.47461608,143.01,142.95,138.3]
[1746531632165,24.47461608,143.01,142.98,24.157993]
[1746531632759,24.47461608,143.01,142.97,24.157993]
[1746531632760,18.64964886,143.0,142.97,24.157993]
[1746531632962,42.80764186,143.0,142.96,24.157993]
[1746531633662,24.47723616,142.99,142.96,24.157993]
[1746531636951,18.64964886,142.98,142.96,24.157993]
[1746531637556,18.64964886,142.98,142.94,144.3199]
[1746531637557,18.64964886,142.98,142.95,24.157993]
[1746531638639,42.80764186,142.98,142.94,30.177893]
[1746531638842,18.64964886,142.96,142.94,30.177893]
[1746531639080,6.99447436,142.97,142.95,24.157993]
[1746531639277,25.64412322,142.97,142.96,24.157993]
[1746531639450,6.99447436,142.97,142.96,24.157993]
[1746531639971,6.99447436,142.97,142.96,15.10789501]
[1746531642876,6.99300699,143.0,142.96,15.10789501]
[1746531643073,18.64964886,142.99,142.97,15.10789501]
[1746531644576,6.99398517,142.98,142.97,15.10789501]
[1746531644767,6.99398517,142.98,142.96,15.10789501]
[1746531646576,6.99398517,142.98,142.97,15.10789501]
[1746531647276,6.99398517,142.98,142.96,15.10789501]
[1746531648195,6.99398517,142.98,142.94,144.3199]
[1746531648388,18.64964886,142.97,142.94,159.42779501]
[1746531648558,25.64425691,142.97,142.96,15.10789501]
[1746531648760,6.99460805,142.97,142.96,15.10789501]
[1746531649367,6.99421007,142.98,142.96,15.10789501]
[1746531649568,6.99421007,142.98,142.97,15.10789501]
[1746531651088,6.99421007,142.98,142.94,21.12779501]
[1746531651279,6.99421007,142.98,142.97,15.10789501]
[1746531651578,6.99421007,142.98,142.94,144.3199]
[1746531651783,6.99421007,142.98,142.97,15.10789501]
[1746531658180,6.992518,143.01,142.97,15.10789501]
[1746531658386,6.992518,143.01,142.99,15.10789501]
[1746531658579,6.992518,143.01,142.98,15.10789501]
[1746531659590,24.47381301,143.01,142.98,15.10789501]
[1746531659893,18.64964886,143.0,142.98,15.10789501]
[1746531660057,18.64964886,143.0,142.97,15.10789501]
[1746531660491,18.64964886,143.0,142.96,15.10789501]
[1746531660863,33.75754387,143.0,142.95,15.10789501]
[1746531661064,18.64964886,142.98,142.94,144.3199]
[1746531661357,18.64964886,142.98,142.94,6.0199]
[1746531661593,18.64964886,142.98,142.95,15.10789501]
[1746531662090,18.64964886,142.98,142.97,0.069945]
[1746531663175,25.64363403,142.98,142.97,0.069945]
[1746531670287,6.99398517,142.98,142.97,0.069945]
[1746531670483,6.99398517,142.98,142.97,15.17784001]
[1746531671996,6.99349604,142.99,142.97,15.17784001]
[1746531672200,6.99349604,142.99,142.97,0.069945]
[1746531674289,25.64363403,142.98,142.97,0.069945]
[1746531676497,40.75152904,142.98,142.97,0.069945]
[1746531678975,18.64964886,142.91,142.88,7.6634]
[1746531679172,18.64964886,142.91,142.89,15.10789501]
[1746531679409,15.10789501,142.93,142.89,15.10789501]
[1746531679791,33.75754387,142.94,142.9,15.10789501]
[1746531680105,18.64964886,142.94,142.9,15.10789501]
[1746531680397,33.75754387,142.94,142.9,15.10789501]
[1746531680603,18.64964886,142.92,142.9,15.10789501]
[1746531680903,18.64964886,142.92,142.88,7.6634]
[1746531681078,18.64964886,142.92,142.89,15.10789501]
[1746531681479,18.64964886,142.92,142.9,15.10789501]
[1746531682002,6.99643181,142.93,142.91,15.10789501]
[1746531682709,6.99643181,142.93,142.9,15.10789501]
[1746531683221,6.99643181,142.93,142.91,15.10789501]
[1746531683380,18.64964886,142.92,142.88,145.9634]
[1746531683695,18.64964886,142.92,142.9,15.10789501]
[1746531684606,6.99741095,142.91,142.9,15.10789501]
[1746531685808,6.99741095,142.91,142.88,7.6634]
[1746531686313,6.99741095,142.91,142.88,22.77129501]
[1746531686484,6.99741095,142.91,142.89,15.10789501]
[1746531687517,6.99741095,142.91,142.88,7.6634]
[1746531688012,6.99741095,142.91,142.88,15.10789501]
[1746531688206,6.99741095,142.91,142.87,15.10789501]
[1746531688396,6.99741095,142.91,142.88,15.10789501]
[1746531688592,24.49093834,142.91,142.88,15.10789501]
[1746531688913,6.99839037,142.89,142.85,164.3]
[1746531689207,6.99839037,142.89,142.87,15.10789501]
[1746531689517,25.64803923,142.89,142.88,15.10789501]
[1746531689921,25.64803923,142.89,142.85,164.3]
[1746531690225,25.64803923,142.89,142.87,15.10789501]
[1746531690520,18.64964886,142.88,142.87,15.10789501]
[1746531690900,6.99937005,142.87,142.85,26.0]
[1746531691102,6.99937005,142.87,142.86,15.10789501]
[1746531691728,6.99891758,142.88,142.86,15.10789501]
[1746531691907,25.64754948,142.9,142.87,15.10789501]
[1746531692112,25.64754948,142.9,142.89,15.10789501]
[1746531692408,6.99790062,142.9,142.89,15.10789501]
[1746531692807,6.99741095,142.91,142.89,15.10789501]
[1746531693119,6.99714354,142.92,142.9,22.90889501]
[1746531693296,6.99661934,142.93,142.91,15.10789501]
[1746531693496,6.99661934,142.93,142.92,15.10789501]
[1746531693918,6.99607924,142.94,142.92,15.10789501]
[1746531694117,6.99567576,142.95,142.93,15.10789501]
[1746531694427,6.99465424,142.97,142.94,30.21579002]
[1746531694607,6.99465424,142.97,142.96,15.10789501]
[1746531695822,6.99465424,142.97,142.94,15.10789501]
[1746531696010,43.13048901,142.97,142.94,15.10789501]
[1746531696208,43.13048901,142.97,142.95,15.10789501]
[1746531696728,6.99465424,142.97,142.96,15.10789501]
[1746531697108,18.64964886,142.98,142.96,15.10789501]
[1746531698012,18.64964886,142.98,142.9,7.801]
[1746531698223,18.64964886,142.98,142.95,15.10789501]
[1746531698727,33.75754387,142.98,142.94,15.10789501]
[1746531698916,15.10789501,142.97,142.9,146.101]
[1746531699241,18.64964886,142.95,142.93,15.10789501]
[1746531699802,18.64964886,142.95,142.9,146.101]
[1746531700031,18.64964886,142.95,142.92,15.10789501]
[1746531700409,18.64964886,142.95,142.93,15.10789501]
[1746531701444,25.64559121,142.94,142.93,15.10789501]
[1746531701619,25.64559121,142.94,142.92,15.10789501]
[1746531701818,18.64964886,142.93,142.91,15.10789501]
[1746531702326,18.64964886,142.93,142.92,15.10789501]
[1746531702535,18.64964886,142.93,142.9,7.801]
[1746531702911,18.64964886,142.93,142.92,15.10789501]
[1746531703534,6.99643181,142.93,142.92,15.10789501]
[1746531704037,6.99643181,142.93,142.9,7.801]
[1746531704215,25.64608067,142.93,142.91,15.10789501]
[1746531704413,25.64608067,142.93,142.9,7.801]
[1746531704618,6.99643181,142.93,142.91,15.10789501]
[1746531705223,25.64608067,142.93,142.92,15.10789501]
[1746531705434,25.64608067,142.93,142.9,7.801]
[1746531705610,25.64608067,142.93,142.92,15.10789501]
[1746531706135,25.64608067,142.93,142.91,15.10789501]
[1746531707424,25.64608067,142.93,142.92,15.10789501]
[1746531707927,24.48000953,142.98,142.92,15.10789501]
[1746531708129,18.64964886,142.97,142.94,15.10789501]
[1746531708537,18.64964886,142.97,142.93,15.10789501]
[1746531708538,33.75754387,142.97,142.93,15.10789501]
[1746531708719,33.75754387,142.95,142.9,7.801]
[1746531708920,18.64964886,142.97,142.92,15.10789501]
[1746531709242,18.64964886,142.97,142.94,15.10789501]
[1746531710137,6.99496362,142.96,142.95,15.10789501]
[1746531711944,25.64412322,142.97,142.95,15.10789501]
[1746531712234,43.13030913,142.97,142.94,15.10789501]
[1746531713514,50.48066027,142.97,142.9,22.90889501]
[1746531713731,18.64964886,142.93,142.9,22.90889501]
[1746531714014,6.99692135,142.92,142.9,22.90889501]
[1746531715132,18.64964886,142.91,142.89,15.10789501]
[1746531715549,33.75754387,142.91,142.86,33.9882]
[1746531715724,18.64964886,142.89,142.86,23.09609501]
[1746531715911,18.64964886,142.91,142.88,15.10789501]
[1746531716117,18.64964886,142.89,142.88,15.10789501]
[1746531716615,6.99790062,142.9,142.88,15.10789501]
[1746531716837,18.64964886,142.92,142.89,15.10789501]
[1746531717415,18.64964886,142.92,142.9,15.10789501]
[1746531717843,6.99643181,142.93,142.9,15.10789501]
[1746531718149,6.99643181,142.93,142.91,15.10789501]
[1746531718442,6.99643181,142.93,142.9,15.10789501]
[1746531718645,18.64964886,142.92,142.87,138.3]
[1746531718825,18.64964886,142.92,142.89,15.10789501]
[1746531719332,18.64964886,142.92,142.9,15.10789501]
[1746531720449,6.99741095,142.91,142.9,15.10789501]
[1746531720639,6.99741095,142.91,142.87,138.3]
[1746531720824,6.99741095,142.91,142.88,15.10789501]
[1746531721021,18.64964886,142.9,142.87,153.40789501]
[1746531721243,18.64964886,142.9,142.88,15.10789501]
[1746531721421,18.64964886,142.9,142.89,15.10789501]
[1746531722750,6.99839037,142.89,142.86,7.9882]
[1746531723040,6.99839037,142.89,142.88,15.10789501]
[1746531724952,6.99741095,142.91,142.88,15.10789501]
[1746531725156,6.99741095,142.91,142.86,7.9882]
[1746531725329,6.99741095,142.91,142.89,15.10789501]
[1746531726725,6.99741095,142.91,142.9,15.10789501]
[1746531728144,18.64964886,142.92,142.9,15.10789501]
[1746531728330,18.64964886,142.92,142.91,15.10789501]
[1746531728531,6.99643181,142.93,142.91,15.10789501]
[1746531728741,25.64608067,142.93,142.92,15.10789501]
[1746531728953,6.99643181,142.93,142.92,15.10789501]
[1746531729334,6.99611646,142.94,142.92,15.10789501]
[1746531729559,6.99611646,142.94,142.93,15.10789501]
[1746531731655,24.48597234,142.94,142.92,15.10789501]
[1746531732060,6.99611646,142.94,142.93,15.10789501]
[1746531732239,18.64964886,142.95,142.93,15.10789501]